Cogmind - Beta 14 @@@ ROGUE MODE // 2024.10.21 @ 21:41:09 Player: weedlord420 Result: Self-destructed Performance ------------- Evolutions (5) 2500 Regions Visited (9) 1800 Robots Destroyed (61) 305 Value Destroyed (2041) 2041 Prototype IDs (24) 480 Alien Tech Used (0) 0 Bonus (850) 850 TOTAL SCORE: 7976 Bonus ------- High Alert Combat Kills 50 Entered DSFs 500 Aligned with FarCom 300 Cogmind --------- Core Integrity 1000/1000 Matter 252/300 Energy 290/290 System Corruption 0% Temperature Cool (0) Movement Rolling (130) Ox2 Location -5/Factory Parts ------- > --- POWER (1) -------- Improved Deuterium Engine > --- PROPULSION (4) --- Armored Treads Armored Huge Wheel > --- UTILITY (10) ----- Improved Heat Sink Improved Heat Sink Large Storage Unit Layered Medium Armor Plating Layered Medium Armor Plating Layered Medium Armor Plating Authchip [Processor] Authchip [Armor] > --- WEAPON (2) ------- Gatling Laser Heavy Flak Cannon > --- INVENTORY (15) --- Micro Fission Core Armored Medium Treads Armored Wheel High-capacity Matter Pod (200) Experimental Sensor Array Improved Signal Interpreter Transmission Jammer Authchip [Device] Arc Projector Guided Plasma Cannon Gauss Cannon Magnetic Acceleration Cannon Heavy Flak Cannon Peak State ------------ > --- POWER ------------ Improved Deuterium Engine > --- PROPULSION ------- Armored Treads Armored Huge Wheel > --- UTILITY ---------- Improved Heat Sink Improved Heat Sink Large Storage Unit Layered Medium Armor Plating Layered Medium Armor Plating Layered Medium Armor Plating Hacking Suite Authchip [Processor] Authchip [Armor] > --- WEAPON ----------- Magnetic Acceleration Cannon Magnetic Acceleration Cannon > --- INVENTORY -------- Micro Fission Core Armored Treads Armored Wheel Armored Huge Wheel High-capacity Matter Pod Experimental Sensor Array Improved Signal Interpreter Transmission Jammer Authchip [Device] Gatling Laser Guided Plasma Cannon Gauss Cannon [Rating: 63] Favorites ----------- Power Ion Engine Engine Ion Engine Power Core Light Nuclear Core Propulsion Wheel Treads Armored Treads Leg Carbon-fiber Leg Wheel Wheel Utility Improved Heat Sink Device Improved Heat Sink Storage Large Storage Unit Processor Improved Targeting Computer Hackware Hacking Suite Protection Improved Light Armor Plating Weapon Gatling Laser Energy Gun Gatling Laser Ballistic Gun Heavy Battle Rifle Ballistic Cannon Heavy Flak Cannon Special Weapon Mining Laser Slashing Weapon Greatsword Build | -11 -10 -10 -10 -9 -8 -7 -6 -6 -5 ------- Run | Yrd Mat Min Exi Min Mat Fac Fac DSF Fac Slots Evolved 10 | . . . . . 4 2 2 . 2 Power . | . . . . . . . . . . Propulsion 2 | . . . . . 1 . . . 1 Utility 8 | . . . . . 3 2 2 . 1 Weapon . | . . . . . . . . . . Parts Attached 69 | 6 . 1 . 7 12 29 . 14 . Power 6 | 1 . . . . 3 2 . . . Engine 5 | 1 . . . . 2 2 . . . Core 1 | . . . . . 1 . . . . Reactor . | . . . . . . . . . . Propulsion 17 | 2 . . . 1 3 8 . 3 . Treads 5 | . . . . . 1 2 . 2 . Leg 1 | . . . . . 1 . . . . Wheel 11 | 2 . . . 1 1 6 . 1 . Hover . | . . . . . . . . . . Flight . | . . . . . . . . . . Utility 30 | 1 . 1 . 2 5 14 . 7 . Device 9 | . . 1 . 1 2 4 . 1 . Storage 4 | 1 . . . 1 . 2 . . . Processor 2 | . . . . . 2 . . . . Hackware 7 | . . . . . . 5 . 2 . Protection 8 | . . . . . 1 3 . 4 . Artifact . | . . . . . . . . . . Weapon 16 | 2 . . . 4 1 5 . 4 . Energy Gun 5 | 1 . . . . . 3 . 1 . Energy Cannon . | . . . . . . . . . . Ballistic Gun 4 | 1 . . . 2 1 . . . . Ballistic Cannon 4 | . . . . . . 1 . 3 . Launcher . | . . . . . . . . . . Special Weapon 2 | . . . . 2 . . . . . Impact Weapon . | . . . . . . . . . . Slashing Weapon 1 | . . . . . . 1 . . . Piercing Weapon . | . . . . . . . . . . Special Melee Weapon . | . . . . . . . . . . Unidentified Prototypes 1 | . . . . . 1 . . . . Parts Lost 17 | . . . . . . 8 . 9 . Power . | . . . . . . . . . . Propulsion 5 | . . . . . . 3 . 2 . Utility 8 | . . . . . . 3 . 5 . Weapon 4 | . . . . . . 2 . 2 . Highest Loss Streak 4 | . . . . . . 3 . 4 . To Critical Strikes . | . . . . . . . . . . Average Slot Usage (%) 95 | . 85 93 100 100 98 95 73 83 76 Engine 8 | . 14 14 14 14 5 6 6 6 5 Treads 5 | . . . . . 8 7 6 5 5 Wheel 18 | . 28 28 28 28 18 13 6 5 5 Device 13 | . . 8 14 14 18 14 13 12 11 Storage 9 | . 14 14 14 14 9 7 6 6 5 Processor 5 | . . . . . 14 6 . . . Hackware 7 | . . . . . . 14 20 17 11 Protection 5 | . . . . . 3 7 6 16 17 Energy Gun 8 | . 14 14 14 14 1 7 . 3 5 Ballistic Gun 8 | . 14 14 14 13 16 2 . . . Peak Build Rating 63 | 6 6 8 9 15 29 48 48 63 60 Average Rating 29 | 3 6 7 8 12 27 40 48 56 59 On Entrance 22 | . 6 6 8 9 15 29 48 48 59 Naked Turns . | . . . . . . . . . . Heaviest Build 72 | 13 13 14 14 22 33 52 44 72 68 Greatest Support 40 | 20 20 20 20 20 20 40 28 28 28 Greatest Overweight (x) 4 | . . . . 1 1 4 1 2 2 Average Overweight (x) . | . . . . . 1 1 1 1 2 Largest Inventory Capacity 15 | 8 8 8 8 10 10 15 15 15 15 Average Capacity 11 | 6 8 8 8 8 10 14 15 15 15 Most Carried 15 | 5 3 7 7 10 10 15 14 15 13 Average Carried 10 | 2 1 5 6 8 9 14 14 12 12 Final Capacity 15 | 8 8 8 8 10 10 15 15 15 15 Final Carried 14 | 1 3 6 7 10 10 14 14 12 13 Class Distribution -------------------- 39% | Mutant 36% | Hacker-Mutant 17% | Scavenger-Mutant 4% | Skirmisher Dominant Class ---------------- Mutant | -10/Materials Mutant | -10/Mines Mutant | -10/Exiles Mutant | -9/Mines Scavenger-Mutant | -8/Materials Hacker-Mutant | -7/Factory Hacker-Mutant | -6/Factory Mutant | -6/DSF Mutant | -5/Factory Resources | -11 -10 -10 -10 -9 -8 -7 -6 -6 -5 ----------- Run | Yrd Mat Min Exi Min Mat Fac Fac DSF Fac Matter Collected 1125 | 210 57 5 . 72 300 307 . 174 . Remotely . | . . . . . . . . . . Salvage Created 2483 | . 45 51 . 10 689 1329 . 359 . Parts 142 | . 6 1 . . 47 66 . 22 . Haulers Intercepted 5 | . . . . . 4 1 . . . Recyclers Shooed 1 | . . . . . . 1 . . . Parts Field Recycled . | . . . . . . . . . . Retrieved Matter . | . . . . . . . . . . Parts Self-Destructed . | . . . . . . . . . . Prevented . | . . . . . . . . . . Kills | -11 -10 -10 -10 -9 -8 -7 -6 -6 -5 ------- Run | Yrd Mat Min Exi Min Mat Fac Fac DSF Fac Combat Hostiles Destroyed 44 | . 3 . . 1 7 22 . 11 . Melee 5 | . . . . . . 4 . 1 . Guns 31 | . 3 . . 1 7 16 . 4 . Cannons 6 | . . . . . . . . 6 . Classes Destroyed 14 | . 1 1 . 1 6 4 . 1 . Worker 1 | . . . . . 1 . . . . Builder 1 | . . . . . . 1 . . . Tunneler 1 | . . . . . . 1 . . . Hauler 5 | . . . . . 4 1 . . . Recycler 5 | . . 1 . . . 4 . . . Watcher 5 | . . . . . 3 2 . . . Swarmer 13 | . 3 . . . . 3 . 7 . Grunt 14 | . . . . . 3 11 . . . Brawler 1 | . . . . . 1 . . . . Sentry 5 | . . . . . 3 1 . 1 . Specialist 3 | . . . . . . . . 3 . Hunter 4 | . . . . . . 4 . . . Programmer 3 | . . . . . . 3 . . . Assembled 1 | . . . . 1 . . . . . Best Kill Streak 15 | . 3 1 . 1 4 15 . 4 . Combat Bots Only 9 | . 3 . . 1 2 9 . 4 . Max Kills in Single Turn 2 | . 1 1 . 1 2 2 . 1 . Gunslinging 1 | . . . . . . 1 . . . Exploded . | . . . . . . . . . . Melee 1 | . . . . . . 1 . 1 . Uniques/NPCs Destroyed . | . . . . . . . . . . Combat | -11 -10 -10 -10 -9 -8 -7 -6 -6 -5 -------- Run | Yrd Mat Min Exi Min Mat Fac Fac DSF Fac Hostile Shots Fired 414 | . 11 1 . 2 19 237 . 144 . Missed 122 | . 1 . . 1 6 75 . 39 . Damage Taken 4329 | . 80 11 . 14 189 1915 . 2120 . Core 321 | . 25 11 . 14 . 218 . 53 . Absorbed by Shields 188 | . . . . . . 188 . . . Core Remaining (%) 88 | 100 . . . 80 100 68 . 93 . Volleys Fired 125 | . 9 3 . 13 29 56 . 15 . Largest 2 | . 2 2 . 2 2 2 . 2 . Hottest 160 | . 70 70 . 100 83 160 . 133 . Shots Fired 231 | . 18 6 . 17 58 102 . 30 . Gun 201 | . 18 6 . 8 58 100 . 11 . Cannon 21 | . . . . . . 2 . 19 . Launcher . | . . . . . . . . . . Special 9 | . . . . 9 . . . . . Kinetic 97 | . 9 3 . 4 50 12 . 19 . Thermal 134 | . 9 3 . 13 8 90 . 11 . Explosive . | . . . . . . . . . . Electromagnetic . | . . . . . . . . . . Robot Hit Streak 27 | . 2 3 . 4 12 27 . 6 . Robot Miss Streak 7 | . 3 1 . 2 2 4 . 7 . Penetration Max . | . . . . . . . . . . Secondary Targets 3 | . . . . . . 3 . . . Max Gunslinging Chain 1 | . . . . . . 1 . . . Shots Hit Robots 178 | . 8 4 . 5 41 101 . 19 . Core Hits 116 | . 4 3 . 1 24 65 . 19 . Critical Kills . | . . . . . . . . . . Critical Parts Destroyed . | . . . . . . . . . . Critical Strikes 5 | . . 2 . . . 2 . 1 . Burn 2 | . . 2 . . . . . . . Blast 1 | . . . . . . . . 1 . Sever 2 | . . . . . . 2 . . . Melee Attacks 17 | . . . . . . 16 . 1 . Impact . | . . . . . . . . . . Slashing 17 | . . . . . . 16 . 1 . Piercing . | . . . . . . . . . . Sneak Attacks 2 | . . . . . . 1 . 1 . Combat Hostiles 1 | . . . . . . . . 1 . Follow-up Attacks . | . . . . . . . . . . Damage Inflicted 4313 | . 72 45 . 89 811 2671 . 625 . Guns 3357 | . 72 45 . 89 811 2146 . 194 . Cannons 364 | . . . . . . 30 . 334 . Explosions . | . . . . . . . . . . Melee 592 | . . . . . . 495 . 97 . Ramming . | . . . . . . . . . . Kinetic 1377 | . 59 8 . 52 722 202 . 334 . Thermal 2344 | . 13 37 . 37 89 1974 . 194 . Explosive . | . . . . . . . . . . Electromagnetic . | . . . . . . . . . . Impact . | . . . . . . . . . . Slashing 592 | . . . . . . 495 . 97 . Piercing . | . . . . . . . . . . Highest Corruption 2 | . . . . . . 2 . . . Average Corruption 1 | . . . . . . 1 . . . Corruption Purged . | . . . . . . . . . . Corruption Blocked . | . . . . . . . . . . Effects 10 | . . . . . . 10 . . . Message Errors 1 | . . . . . . 1 . . . Matter Fused 1 | . . . . . . 1 . . . Heat Flow Errors 3 | . . . . . . 3 . . . Energy Discharges 3 | . . . . . . 3 . . . Data Loss (major) 2 | . . . . . . 2 . . . Overload Shots . | . . . . . . . . . . Overflow Damage 23 | . . . . . . 23 . . . Projectiles . | . . . . . . . . . . Explosions . | . . . . . . . . . . Melee 23 | . . . . . . 23 . . . Knockbacks 5 | . . . . . . 1 . 4 . Impact . | . . . . . . . . . . Kinetic 5 | . . . . . . 1 . 4 . Secondary . | . . . . . . . . . . Self-Inflicted Damage . | . . . . . . . . . . Shots . | . . . . . . . . . . Rammed . | . . . . . . . . . . Targets Rammed . | . . . . . . . . . . Kicked . | . . . . . . . . . . Crushed . | . . . . . . . . . . Highest Temperature 468 | . 110 40 . . . 341 . 468 . Average Temperature 89 | . 50 23 . . . 79 . 181 . Received Heat Transfer 669 | . . 6 . . 63 570 . 30 . Siege Activations . | . . . . . . . . . . Robots Corrupted . | . . . . . . . . . . Combat Hostiles . | . . . . . . . . . . Parts Fried . | . . . . . . . . . . Impact Corruptions . | . . . . . . . . . . Robots Melted 2 | . . . . . . 2 . . . Combat Hostiles 2 | . . . . . . 2 . . . Parts Melted 11 | . . 1 . . . 10 . . . Heat Transferred 5441 | . 37 259 . 111 259 4325 . 450 . Parts Sabotaged . | . . . . . . . . . . Parts Stolen . | . . . . . . . . . . Parts Stripped . | . . . . . . . . . . Power Chain Reactions . | . . . . . . . . . . Alert | -11 -10 -10 -10 -9 -8 -7 -6 -6 -5 ------- Run | Yrd Mat Min Exi Min Mat Fac Fac DSF Fac Peak Influence 461 | . 85 44 . 3 144 461 172 356 186 Initial 186 | . . 33 . . . 32 172 120 186 Average 111 | . 60 27 . 1 55 182 172 228 186 Maximum Alert Level 2 | . . . . . . 2 . 1 . Low Security (%) 80 | 100 100 100 . 100 100 62 100 46 100 Level 1 10 | . . . . . . 17 . 53 . Level 2 8 | . . . . . . 20 . . . Level 3 . | . . . . . . . . . . Level 4 . | . . . . . . . . . . Level 5 . | . . . . . . . . . . High Security . | . . . . . . . . . . Max Security . | . . . . . . . . . . Sterilizations 1 | . . . . . . . . 1 . Squads Dispatched 12 | . . . . . . 11 . 1 . Investigation 5 | . . . . . . 5 . . . Extermination 3 | . . . . . . 3 . . . Reinforcement 1 | . . . . . . . . 1 . Assault . | . . . . . . . . . . Garrison 3 | . . . . . . 3 . . . Intercept . | . . . . . . . . . . Searches Triggered . | . . . . . . . . . . Construction Impeded . | . . . . . . . . . . Haulers Reinforced . | . . . . . . . . . . Active Scanning Responses . | . . . . . . . . . . Cargo Convoy Interrupts . | . . . . . . . . . . Stealth | -11 -10 -10 -10 -9 -8 -7 -6 -6 -5 --------- Run | Yrd Mat Min Exi Min Mat Fac Fac DSF Fac Distress Signals 5 | . . . . . 2 3 . . . Communications Jammed . | . . . . . . . . . . Distress Signals . | . . . . . . . . . . Times Spotted 76 | . 5 2 . 1 12 42 . 14 . Peak Tracking Total 10 | . 3 2 . 1 3 10 . 5 . Tactical Retreats 8 | . . . . . . 4 . 4 . Traps | -11 -10 -10 -10 -9 -8 -7 -6 -6 -5 ------- Run | Yrd Mat Min Exi Min Mat Fac Fac DSF Fac Traps Triggered 5 | . . . . . . 5 . . . Indirectly . | . . . . . . . . . . Trap Hack Attempts . | . . . . . . . . . . Triggered . | . . . . . . . . . . Disarmed . | . . . . . . . . . . Reprogrammed . | . . . . . . . . . . Reused . | . . . . . . . . . . Traps Extracted . | . . . . . . . . . . Installed . | . . . . . . . . . . Triggered . | . . . . . . . . . . Machines | -11 -10 -10 -10 -9 -8 -7 -6 -6 -5 ---------- Run | Yrd Mat Min Exi Min Mat Fac Fac DSF Fac Machines Disabled 2 | . . . . . . 1 . 1 . Max in Single Turn 1 | . . . . . . 1 . 1 . Machines Repaired . | . . . . . . . . . . Machines Dismantled . | . . . . . . . . . . Machines Sabotaged . | . . . . . . . . . . Overloaded Fab Kills . | . . . . . . . . . . Hacking | -11 -10 -10 -10 -9 -8 -7 -6 -6 -5 --------- Run | Yrd Mat Min Exi Min Mat Fac Fac DSF Fac Machines Accessed 19 | . 1 1 1 . 3 11 1 . 1 Terminals 14 | . 1 1 . . 3 7 1 . 1 Fabricators 2 | . . . . . . 2 . . . Repair Stations . | . . . . . . . . . . Recycling Units . | . . . . . . . . . . Scanalyzers 1 | . . . . . . 1 . . . Garrison Access 1 | . . . . . . 1 . . . Total Hacks 40 | . 3 3 1 . 5 26 1 . 1 Successful 19 | . 1 1 1 . 2 13 1 . . Failed 21 | . 2 2 . . 3 13 . . 1 Catastrophic 7 | . 1 . . . 1 5 . . . Database Lockouts . | . . . . . . . . . . Manual 26 | . 3 3 1 . 4 15 . . . Terminals 31 | . 3 3 . . 5 18 1 . 1 Fabricators 3 | . . . . . . 3 . . . Repair Stations . | . . . . . . . . . . Recycling Units . | . . . . . . . . . . Scanalyzers 3 | . . . . . . 3 . . . Garrison Access 2 | . . . . . . 2 . . . Terminal Hacks 8 | . . 1 1 . 1 4 1 . . Part Schematic 1 | . . . . . . 1 . . . Open DSF 1 | . . . . . . . 1 . . Terminal Index 1 | . . . . . . 1 . . . Fabricator Index 1 | . . . . . . 1 . . . Unreport Threat 1 | . . . . . . 1 . . . Locate Traps 1 | . . . . . 1 . . . . Zone Layout 1 | . . 1 . . . . . . . Derelict Proto ID Bank 1 | . . . 1 . . . . . . Fabricator Hacks 2 | . . . . . . 2 . . . Load Schematic 1 | . . . . . . 1 . . . Build 1 | . . . . . . 1 . . . Repair Station Hacks . | . . . . . . . . . . Recycling Unit Hacks . | . . . . . . . . . . Scanalyzer 3 | . . . . . . 3 . . . Insert Component 2 | . . . . . . 2 . . . Analyze 1 | . . . . . . 1 . . . Garrison Access Hacks . | . . . . . . . . . . Unauthorized Hacks 6 | . 1 . . . 1 4 . . . Terminals 5 | . 1 . . . 1 3 . . . Assimilate 2 | . . . . . . 2 . . . Operators 3 | . 1 . . . 1 1 . . . Fabricators 1 | . . . . . . 1 . . . Recompile 1 | . . . . . . 1 . . . Repair Stations . | . . . . . . . . . . Recycling Units . | . . . . . . . . . . Scanalyzers . | . . . . . . . . . . Garrison Access . | . . . . . . . . . . Data Cores Recovered . | . . . . . . . . . . Used . | . . . . . . . . . . Hacking Detections 15 | . 1 1 . . 2 10 . . 1 Full Trace Events 4 | . 1 1 . . . 2 . . . Feedback Events . | . . . . . . . . . . Feedback Blocked . | . . . . . . . . . . Robot Schematics Acquired . | . . . . . . . . . . Robots Built . | . . . . . . . . . . Authchips . | . . . . . . . . . . Time . | . . . . . . . . . . Total Robot Build Rating . | . . . . . . . . . . Part Schematics Acquired 2 | . . . . . . 2 . . . Parts Built 1 | . . . . . . 1 . . . Authchips . | . . . . . . . . . . Time 36 | . . . . . . 36 . . . Total Part Build Rating 3 | . . . . . . 3 . . . Parts Repaired . | . . . . . . . . . . Time . | . . . . . . . . . . Parts Recycled . | . . . . . . . . . . Recycled Matter . | . . . . . . . . . . Retrieved Matter . | . . . . . . . . . . Retrieved Components . | . . . . . . . . . . Parts Scanalyzed 1 | . . . . . . 1 . . . Part Schematics Acquired 1 | . . . . . . 1 . . . Parts Damaged . | . . . . . . . . . . Bothacking | -11 -10 -10 -10 -9 -8 -7 -6 -6 -5 ------------ Run | Yrd Mat Min Exi Min Mat Fac Fac DSF Fac Used RIF Installer . | . . . . . . . . . . Robots Hacked . | . . . . . . . . . . Non-combat . | . . . . . . . . . . Combat . | . . . . . . . . . . Robot Hacks Applied . | . . . . . . . . . . Relay Couplers Released . | . . . . . . . . . . Fabnet Peak Effective % . | . . . . . . . . . . Robots Rewired . | . . . . . . . . . . Allies Hacked . | . . . . . . . . . . Hacks Repelled . | . . . . . . . . . . Allies | -11 -10 -10 -10 -9 -8 -7 -6 -6 -5 -------- Run | Yrd Mat Min Exi Min Mat Fac Fac DSF Fac Total Allies . | . . . . . . . . . . Largest Group . | . . . . . . . . . . Highest-Rated Group . | . . . . . . . . . . Highest-Rated Ally . | . . . . . . . . . . Total Orders . | . . . . . . . . . . Ally Attacks . | . . . . . . . . . . Total Damage . | . . . . . . . . . . Kills . | . . . . . . . . . . Allies Corrupted . | . . . . . . . . . . Allies Melted . | . . . . . . . . . . Intel | -11 -10 -10 -10 -9 -8 -7 -6 -6 -5 ------- Run | Yrd Mat Min Exi Min Mat Fac Fac DSF Fac Robot Analysis Total . | . . . . . . . . . . Derelict Logs Recovered 2 | . . 1 . 1 . . . . . Drone Launches . | . . . . . . . . . . Drone Recoveries . | . . . . . . . . . . Exploration | -11 -10 -10 -10 -9 -8 -7 -6 -6 -5 ------------- Run | Yrd Mat Min Exi Min Mat Fac Fac DSF Fac Turns Passed 5779 | 35 162 585 170 903 1063 2372 19 343 127 Spaces Moved 4389 | 32 158 606 211 719 809 1541 17 208 88 Core 12 | 12 . . . . . . . . . Treads 4 | . . . . . . 4 . . . Legs . | . . . . . . . . . . Wheels 4373 | 20 158 606 211 719 809 1537 17 208 88 Hover . | . . . . . . . . . . Flight . | . . . . . . . . . . Fastest Speed 50 | 50 80 80 80 80 95 95 115 115 130 Average Speed 97 | 68 80 80 80 85 95 111 115 125 130 Slowest Speed 250 | 80 80 80 80 95 95 250 115 130 130 Overloaded Moves . | . . . . . . . . . . Propulsion Burnouts . | . . . . . . . . . . Robots Hopped . | . . . . . . . . . . Cave-ins Triggered . | . . . . . . . . . . Exploration Rate (%) 47 | 3 33 91 61 98 51 38 1 93 3 Regions Visited 9 Branch Regions 3 Pre-discovered Areas . | . . . . . . . . . . Known Exits Taken 1 | . . . . . . . 1 . . Unknown Exits Taken 7 | 1 1 1 1 1 1 1 . . . Scrap Searched 3 | . . 1 . 2 . . . . . Spaces Dug 10 | . . . . 5 . 5 . . . Terrain Destroyed 16 | . . . . 7 2 6 . 1 . Melee 5 | . . . . . . 5 . . . Projectile 11 | . . . . 7 2 1 . 1 . AOE . | . . . . . . . . . . Terrain Rammed . | . . . . . . . . . . Walls Destroyed . | . . . . . . . . . . Machines Disabled . | . . . . . . . . . . Actions | -11 -10 -10 -10 -9 -8 -7 -6 -6 -5 --------- Run | Yrd Mat Min Exi Min Mat Fac Fac DSF Fac Total 5570 | 44 177 700 211 970 1047 2050 16 255 100 Wait 866 | . 9 87 . 225 176 352 . 6 11 Move 4380 | 31 157 605 210 718 808 1540 16 207 88 Hop . | . . . . . . . . . . Pick Up 59 | 7 2 4 1 4 10 22 . 8 1 Fast Attach 16 | . . . . . 5 5 . 6 . Attach 26 | 6 . 1 . . 3 10 . 6 . Detach . | . . . . . . . . . . Swap 27 | . . . . 7 4 14 . 2 . Drop 38 | . . . . 3 12 19 . 4 . Fire 125 | . 9 3 . 13 29 56 . 15 . Melee 17 | . . . . . . 16 . 1 . Ram . | . . . . . . . . . . Kick . | . . . . . . . . . . Crush . | . . . . . . . . . . Escape Stasis 16 | . . . . . . 16 . . . Rewire . | . . . . . . . . . . Trap . | . . . . . . . . . . Miscellaneous . | . . . . . . . . . . Route ------- -11/Scrapyard -10/Materials -10/Mines (discovered 3 exits: [*Mat x2] / *Exi) -10/Exiles -9/Mines (discovered 2 exits: *Mat x2) -8/Materials -7/Factory -6/Factory -6/DSF -5/Factory History --------- Turn | Location | Event 12 | -11/Scrapyard | Discovered new exit (range 16) 36 | -11/Scrapyard | Entered Materials 147 | -10/Materials | Met 8R-AWN 150 | -10/Materials | Discovered new exit (range 11) 198 | -10/Materials | Entered Mines 199 | -10/Mines | Followed 8R-AWN into the Mines 228 | -10/Mines | Discovered new exit (range 5) 302 | -10/Mines | Build established: Mutant 316 | -10/Mines | A weapon hastily lodged in a ceiling crevice suddenly fell to the ground 414 | -10/Mines | Discovered new exit (range 19) 471 | -10/Mines | Discovered new exit (range 7) 534 | -10/Mines | Learned Materials terminal intel 783 | -10/Mines | Entered Exiles 803 | -10/Exiles | Welcomed by 8R-AWN 816 | -10/Exiles | Met EX-HEX 839 | -10/Exiles | Met EX-BIN 848 | -10/Exiles | Aligned with FarCom system 849 | -10/Exiles | Given EX-Vault access code 868 | -10/Exiles | Opened EX-Vault 873 | -10/Exiles | Found Gui. Plasma Cannon 893 | -10/Exiles | Warned to stay clear of 0b10 Research branches 914 | -10/Exiles | Met EX-DEC 944 | -10/Exiles | Discovered new exit (range 10) 953 | -10/Exiles | Left Exiles lab with Gui. Plasma Cannon 953 | -10/Exiles | Entered Mines 1059 | -9/Mines | Discovered new exit (range 14) 1067 | -9/Mines | Found a damaged Exp. Sensor Array with a note attached 1069 | -9/Mines | Found Prototype Device 1083 | -9/Mines | Discovered new exit (range 7) 1223 | -9/Mines | Excavation squad dispatched 1223 | -9/Mines | A large section of the Mines collapsed 1473 | -9/Mines | Excavation squad dispatched 1856 | -9/Mines | Entered Materials 1856 | -8/Materials | Evolved 4 slots: Propulsion x1, Utility x3 1857 | -8/Materials | Loaded intel: 12 terminal locations 2436 | -8/Materials | Build established: Scavenger-Mutant 2687 | -8/Materials | Discovered new exit (range 5) 2919 | -8/Materials | Entered Factory 2919 | -7/Factory | Evolved 2 slots: Utility x2 3242 | -7/Factory | Build established: Hacker-Mutant 4310 | -7/Factory | Garrison activated, responded to threat 4470 | -7/Factory | Destroyed 9 combat bots 4470 | -7/Factory | Lost 3 parts (1n1u1w) 4928 | -7/Factory | Discovered new exit (range 16) 5163 | -7/Factory | Fabricated Hacking Suite (x1) 5291 | -7/Factory | Entered another Factory area 5291 | -6/Factory | Evolved 2 slots: Utility x2 5310 | -6/Factory | Identified exit to DSF 5310 | -6/Factory | Entered DSF 5336 | -6/DSF | Additional patrols routed to DSF 5401 | -6/DSF | Lost 4 parts (3u1w) 5478 | -6/DSF | Discovered new exit (range 15) 5524 | -6/DSF | Sterilization system engaged 5544 | -6/DSF | Ambient heat levels rising (+10) 5559 | -6/DSF | Ambient heat levels rising (+10) 5569 | -6/DSF | Lost 3 parts (1n2u) 5574 | -6/DSF | Ambient heat levels rising (+10) 5589 | -6/DSF | Ambient heat levels rising (+10) 5604 | -6/DSF | Ambient heat levels rising (+10) 5618 | -6/DSF | Build established: Mutant 5619 | -6/DSF | Ambient heat levels rising (+10) 5634 | -6/DSF | Ambient heat levels rising (+10) 5649 | -6/DSF | Ambient heat levels rising (+10) 5653 | -6/DSF | Entered Factory 5653 | -5/Factory | Evolved 2 slots: Propulsion x1, Utility x1 5780 | -5/Factory | Self-destructed Last Messages --------------- 05581_ Acquired 34 matter. 05585_ Penetrated by Slug. 05589_ ALERT: Ambient heat levels +10. 05601_ Acquired 51 matter. 05604_ ALERT: Ambient heat levels +10. 05604_ Acquired Arc Projector. 05619_ ALERT: Ambient heat levels +10. 05633_ H-61 Shepherd heat damages Visual Processing Unit. 05634_ ALERT: Ambient heat levels +10. 05635_ H-61 Shepherd heat short circuits Arm. Treads. 05649_ ALERT: Ambient heat levels +10. PARAMETERS=PROPULSION+1,UTILITY+1 LOCATION=UNKNOWN GOAL=ESCAPE 05653_ Receiving FarCom transmissions... 05656_ Connecting with DSF Access... 05656_ Current location identified: Factory 05761_ Acquired Arm. Medium Treads. Map ----- +----------------------------------------------------+ | ??????????????????????????# # #??????? | | ??????????????????????????# # ! #??????? | | ??????????????????????????# # #??????? | | ??????????????????????????# + #??????? | | ??????????????????????????# # """ """ #??????? | | ??????????????????????????# # """ """ #??????? | | ??????????????????????????# # """ """ #??????? | | ?????????????????########## #####+#########??? | | ???????????????? #??? | | ???????????????? #??? | | ???????????????? #??? | | ???????????????? #??? | | ???????????????? #??? | | ?????????????????#############+########## #??? | | ????????????????????????# #??# #??? | | ????????????????????????# #??## T###??? | | ????????????????????????# #???####????? | | ????????????????????????# #???????????? | | ????????????????????????# """ """ #???????????? | | ????????????????????????# """ """ #???????????? | | ????????????????????????# """ """ #???????????? | | ????????????????????????# #???????????? | | ????????????????????????# """ """ #???????????? | | ????????????????????????# """ """ #???????????? | | ????????????????????????# """ """ #???????????? | | ????????????????????????#@ #???????????? | | ????????????????????????##############???????????? | | ?????????????????????????????????????????????????? | | ?????????????????????????????????????????????????? | | ?????????????????????????????????????????????????? | | ?????????????????????????????????????????????????? | | ?????????????????????????????????????????????????? | | ?????????????????????????????????????????????????? | | ?????????????????????????????????????????????????? | | ?????????????????????????????????????????????????? | | ?????????????????????????????????????????????????? | | ?????????????????????????????????????????????????? | | ?????????????????????????????????????????????????? | | ?????????????????????????????????????????????????? | | ?????????????????????????????????????????????????? | | ?????????????????????????????????????????????????? | | ?????????????????????????????????????????????????? | | ?????????????????????????????????????????????????? | | ?????????????????????????????????????????????????? | | ?????????????????????????????????????????????????? | | ?????????????????????????????????????????????????? | | ?????????????????????????????????????????????????? | | ?????????????????????????????????????????????????? | | ?????????????????????????????????????????????????? | | ?????????????????????????????????????????????????? | +----------------------------------------------------+ Best States ------------- Heat Dissipation 68 Energy Generation 16 Energy Capacity 290 Matter Stores 300 Matter Capacity 300 Sight Range 16 Robot Scan Range 14 Terrain Scan Range 16 Terrain Scan Density 10 Armor Coverage 675 Evasion (%) 50 Targeting Accuracy 12 Recoil Reduction 2 Offensive Hacking 30 Authchip Count 3 Item Schematics ----------------- Hacking Suite | -7/Factory | Hacked Arm. Huge Wheel | -7/Factory | Scanalyzed Robot Schematics ------------------ None Fabricated ------------ Hacking Suite | x1 | -7/Factory Alien Tech Used ----------------- None Achievements -------------- None Challenges ------------ None Game ------ Seed FortressSpectralTerminator Manual? 0 Play Time 00:44:59 Cumulative 80.1 hours Start 2024.10.21 @ 07:17:06 End 2024.10.21 @ 21:41:09 Sessions 6 Manual Loads 0 Difficulty Rogue Special Mode None Game No. 132 Rogue 131 Adventurer 1 Explorer 0 Win Type - Total 0 Types 0/0/0/0/0/0/0/0/0 Lore% 49 Gallery% 51 Achievement% 44 Wizard Run 0 Options --------- Layout 1 ASCII 0 Keyboard 0 Movement Mouse Keybinds 0 Fullscreen 2 Font 24/Terminus Map View 50x35 Zoom Use 0% Tactical HUD 1 Map Filters NONE Filters NONE Steam 1 RUN: 43390a43-366e-45e1-935b-b5bcbe2a7fc9